fUST/lending_fUST_20250624
["ID","MTS","AMOUNT","RATE_DAILY","PERIOD"]
[367329269,1750752650200,-460.0,0.0002,2]
[367329270,1750752650211,-460.0,0.0002,2]
[367329271,1750752650220,-492.32,0.0002,2]
[367329272,1750752650229,-460.0,0.0002,2]
[367329273,1750752650238,-460.0,0.0002,2]
[367329274,1750752650248,-478.38,0.0002,2]
[367329275,1750752650258,-460.0,0.0002,2]
[367329276,1750752650267,-460.0,0.0002,2]
[367329277,1750752650276,-460.0,0.0002,2]
[367329278,1750752650285,-501.61,0.0002,2]
[367329279,1750752650295,-460.0,0.0002,2]
[367329280,1750752650304,-508.6,0.0002,2]
[367329281,1750752650313,-159.44401892,0.0002,2]
[367329282,1750752650323,-460.0,0.0002,2]
[367329283,1750752650333,-460.0,0.0002,2]
[367329284,1750752650342,-460.0,0.0002,2]
[367329285,1750752650351,-460.0,0.0002,2]
[367329286,1750752650361,-460.0,0.0002,2]
[367329287,1750752650370,-460.0,0.0002,2]
[367329288,1750752650379,-3575.0,0.0002,2]
[367329289,1750752650388,-312.61376352,0.0002,2]
[367329290,1750752650398,-460.0,0.0002,2]
[367329291,1750752650407,-460.0,0.0002,2]
[367329292,1750752650416,-6857.0,0.0002,2]
[367329293,1750752650426,-460.0,0.0002,2]
[367329294,1750752650435,-714.5,0.0002,2]
[367329295,1750752650444,-460.0,0.0002,2]
[367329296,1750752650453,-460.0,0.0002,2]
[367329297,1750752650463,-460.0,0.0002,2]
[367329298,1750752650472,-336.9801576,0.0002,2]
[367329299,1750752650482,-388.93557322,0.0002,2]
[367329300,1750752650491,-460.0,0.0002,2]
[367329301,1750752650500,-460.0,0.0002,2]
[367329302,1750752650510,-460.0,0.0002,2]
[367329303,1750752650519,-460.0,0.0002,2]
[367329304,1750752650529,-460.0,0.0002,2]
[367329305,1750752650538,-523.43,0.0002,2]
[367329306,1750752650548,-460.0,0.0002,2]
[367329307,1750752650557,-460.0,0.0002,2]
[367329308,1750752650567,-460.0,0.0002,2]
[367329309,1750752650576,-503.09,0.0002,2]
[367329310,1750752650586,-460.0,0.0002,2]
[367329311,1750752650595,-460.0,0.0002,2]
[367329312,1750752650605,-460.0,0.0002,2]
[367329313,1750752650618,-460.0,0.0002,2]
[367329314,1750752650627,-460.0,0.0002,2]
[367329315,1750752650637,-460.0,0.0002,2]
[367329316,1750752650646,-460.0,0.0002,2]
[367329317,1750752650656,-460.0,0.0002,2]
[367329318,1750752650665,-460.0,0.0002,2]
[367329319,1750752650675,-460.0,0.0002,2]
[367329320,1750752650684,-460.0,0.0002,2]
[367329321,1750752650694,-1026.56,0.0002,2]
[367329322,1750752650703,-460.0,0.0002,2]
[367329323,1750752650712,-821.9,0.0002,2]
[367329324,1750752650722,-249.62681152,0.0002,2]
[367329325,1750752650732,-460.0,0.0002,2]
[367329326,1750752650741,-460.0,0.0002,2]
[367329327,1750752650750,-896.28,0.0002,2]
[367329328,1750752650759,-460.0,0.0002,2]
[367329329,1750752650769,-1097.0,0.0002,2]
[367329330,1750752650778,-570.38,0.0002,2]
[367329331,1750752650791,-36359.19400879,0.0002,2]
[367329332,1750752650800,-460.0,0.0002,2]
[367329333,1750752650810,-460.0,0.0002,2]
[367329334,1750752650819,-460.0,0.0002,2]
[367329335,1750752650830,-460.0,0.0002,2]
[367329336,1750752650839,-460.0,0.0002,2]
[367329337,1750752650848,-460.0,0.0002,2]
[367329338,1750752650857,-896.27,0.0002,2]
[367329339,1750752650869,-3446.55,0.0002,2]
[367329340,1750752650878,-451.20566503,0.0002,2]
[367329341,1750752650887,-545.79,0.0002,2]
[367329342,1750752650896,-999.41,0.0002,2]
[367329343,1750752650906,-460.0,0.0002,2]
[367329344,1750752650915,-460.0,0.0002,2]
[367329345,1750752650925,-2713.65,0.0002,2]
[367329346,1750752650934,-460.0,0.0002,2]
[367329347,1750752650943,-460.0,0.0002,2]
[367329348,1750752650952,-460.0,0.0002,2]
[367329349,1750752650961,-1312.15,0.0002,2]
[367329350,1750752650970,-460.0,0.0002,2]
[367329351,1750752650979,-460.0,0.0002,2]
[367329352,1750752650989,-3355.8,0.0002,2]
[367329353,1750752650999,-3734.84,0.0002,2]
[367329354,1750752651008,-1361.0,0.0002,2]
[367329355,1750752651017,-460.0,0.0002,2]
[367329356,1750752651026,-460.0,0.0002,2]
[367329357,1750752651036,-1116.13,0.0002,2]
[367329358,1750752651045,-460.0,0.0002,2]
[367329359,1750752651055,-460.0,0.0002,2]
[367329360,1750752651064,-1182.98,0.0002,2]
[367329361,1750752651074,-460.0,0.0002,2]
[367329362,1750752651083,-937.65,0.0002,2]
[367329363,1750752651092,-564.93180936,0.0002,2]
[367329364,1750752651102,-460.0,0.0002,2]
[367329365,1750752651113,-460.0,0.0002,2]
[367329366,1750752651122,-460.0,0.0002,2]
[367329367,1750752651131,-547.64,0.0002,2]
[367329368,1750752651141,-460.0,0.0002,2]
[367329369,1750752651150,-460.0,0.0002,2]
[367329370,1750752651159,-460.0,0.0002,2]
[367329371,1750752651169,-460.0,0.0002,2]
[367329372,1750752651178,-460.0,0.0002,2]
[367329373,1750752651187,-460.0,0.0002,2]
[367329374,1750752651280,-460.0,0.0002,2]
[367329375,1750752651291,-460.0,0.0002,2]
[367329376,1750752651302,-3172.77,0.0002,2]
[367329377,1750752651314,-1806.17,0.0002,2]
[367329378,1750752651325,-460.0,0.0002,2]
[367329379,1750752651336,-1139.13,0.0002,2]
[367329380,1750752651346,-460.0,0.0002,2]
[367329381,1750752651356,-460.0,0.0002,2]
[367329382,1750752651365,-4070.75,0.0002,2]
[367329383,1750752651375,-467.82,0.0002,2]
[367329384,1750752651385,-460.0,0.0002,2]
[367329385,1750752651394,-460.0,0.0002,2]
[367329386,1750752651404,-460.0,0.0002,2]
[367329387,1750752651416,-460.0,0.0002,2]
[367329388,1750752651426,-460.0,0.0002,2]
[367329389,1750752651436,-460.0,0.0002,2]
[367329390,1750752651446,-802.34,0.0002,2]
[367329391,1750752651455,-2208.12,0.0002,2]
[367329392,1750752651465,-460.0,0.0002,2]
[367329393,1750752651475,-460.0,0.0002,2]
[367329394,1750752651485,-460.0,0.0002,2]
[367329395,1750752651494,-513.68,0.0002,2]
[367329396,1750752651503,-460.0,0.0002,2]
[367329397,1750752651513,-2572.64,0.0002,2]
[367329398,1750752651522,-460.0,0.0002,2]
[367329399,1750752651532,-460.0,0.0002,2]
[367329400,1750752651541,-460.0,0.0002,2]
[367329401,1750752651551,-593.83,0.0002,2]
[367329402,1750752651560,-584.89,0.0002,2]
[367329403,1750752651569,-460.0,0.0002,2]
[367329404,1750752651579,-540.21,0.0002,2]
[367329405,1750752651588,-263.58212928,0.0002,2]
[367329406,1750752651598,-4273.48,0.0002,2]
[367329407,1750752651608,-460.0,0.0002,2]
[367329408,1750752651617,-460.0,0.0002,2]
[367329409,1750752651627,-946.13,0.0002,2]
[367329410,1750752651636,-460.0,0.0002,2]
[367329411,1750752651646,-460.0,0.0002,2]
[367329412,1750752651655,-460.0,0.0002,2]
[367329413,1750752651665,-470.14,0.0002,2]
[367329414,1750752651674,-3042.66,0.0002,2]
[367329415,1750752651684,-7145.98,0.0002,2]
[367329416,1750752651693,-460.0,0.0002,2]
[367329417,1750752651703,-460.0,0.0002,2]
[367329418,1750752651712,-1474.54,0.0002,2]
[367329419,1750752651722,-460.0,0.0002,2]
[367329420,1750752651731,-460.0,0.0002,2]
[367329421,1750752651740,-460.0,0.0002,2]
[367329422,1750752651750,-1898.18,0.0002,2]
[367329423,1750752651759,-460.0,0.0002,2]
[367329424,1750752651768,-460.0,0.0002,2]
[367329425,1750752651778,-460.0,0.0002,2]
[367329426,1750752651790,-460.0,0.0002,2]
[367329427,1750752651799,-460.0,0.0002,2]
[367329428,1750752651809,-3447.67,0.0002,2]
[367329429,1750752651818,-1037.04,0.0002,2]
[367329430,1750752651828,-3559.0,0.0002,2]
[367329431,1750752651838,-4000.0,0.0002,4]
[367329432,1750752651847,-853.1,0.0002,2]
[367329433,1750752651857,-460.0,0.0002,2]
[367329434,1750752651868,-460.0,0.0002,2]
[367329435,1750752651877,-1275.83,0.0002,2]
[367329436,1750752651887,-460.0,0.0002,2]
[367329437,1750752651896,-460.0,0.0002,2]
[367329438,1750752651906,-460.0,0.0002,2]
[367329439,1750752651915,-460.0,0.0002,2]
[367329440,1750752651924,-1267.62,0.0002,2]
[367329441,1750752651933,-460.0,0.0002,2]
[367329442,1750752651943,-1171.59,0.0002,2]
[367329443,1750752651952,-460.0,0.0002,2]
[367329444,1750752651961,-823.8,0.0002,2]
[367329445,1750752651970,-1521.89,0.0002,2]
[367329446,1750752651979,-1403.33,0.0002,2]
[367329447,1750752651989,-500.0,0.0002,2]
[367329448,1750752651998,-500.0,0.00020028,2]
[367329449,1750752652007,-500.0,0.00020055,2]
[367329450,1750752652017,-150.0,0.00020063,2]
[367329451,1750752652026,-965.0,0.00020063,2]
[367329452,1750752652035,-500.0,0.00020069,2]
[367329453,1750752652044,-500.0,0.00020069,2]
[367329454,1750752652054,-582.69328266,0.00020069,2]
[367329455,1750752652063,-500.0,0.00020069,2]
[367329456,1750752652072,-500.0,0.00020069,2]
[367329457,1750752652082,-500.0,0.00020082,2]
[367329458,1750752652091,-151.0,0.000201,4]
[367329459,1750752652100,-151.0,0.000201,4]
[367329460,1750752652111,-460.0,0.000201,2]
[367329461,1750752652120,-500.0,0.0002011,2]
[367329462,1750752652130,-500.0,0.00020137,2]
[367329463,1750752652140,-418.0,0.00020143,2]
[367329464,1750752652149,-3909.2380181,0.00020145,2]
[367329465,1750752652158,-500.0,0.00020165,2]
[367329466,1750752652168,-575.917887,0.00020187,2]
[367329467,1750752652177,-500.0,0.00020192,2]
[367329468,1750752652187,-151.0,0.000202,3]
[367329469,1750752652196,-3157.93331816,0.000202,2]
[367329470,1750752652206,-3157.93331803,0.000202,2]
[367329471,1750752652215,-500.0,0.00020219,2]
[367329472,1750752652225,-3157.93331803,0.00020245,2]
[367329473,1750752652234,-500.0,0.00020247,2]
[367329474,1750752652243,-381.57981618,0.00020268,2]
[367329475,1750752652253,-428.52617537,0.00020268,2]
[367329476,1750752652262,-1500.0,0.00020268,2]
[367329477,1750752652271,-1500.0,0.00020268,2]
[367329478,1750752652281,-236.61841844,0.00020268,2]
[367329479,1750752652290,-1500.0,0.00020268,2]
[367329480,1750752652299,-1500.0,0.00020268,2]
[367329481,1750752652308,-909104.9037,0.00020272,2]
[367329482,1750752652317,-460.0,0.00020273,2]
[367329483,1750752652327,-460.0,0.00020273,2]
[367329484,1750752652336,-151.0,0.00020273,2]
[367329485,1750752652345,-460.0,0.00020273,2]
[367329486,1750752652354,-255.51,0.00020273,2]
[367329487,1750752652364,-602.58,0.00020273,2]
[367329488,1750752652375,-430.44249856,0.00020273,2]
[367329489,1750752652386,-460.0,0.00020273,2]
[367329490,1750752652395,-307.77,0.00020273,2]
[367329491,1750752652405,-460.0,0.00020273,2]
[367329492,1750752652415,-460.0,0.00020273,2]
[367329493,1750752652424,-673.94,0.00020273,2]
[367329494,1750752652433,-1047.12,0.00020273,2]
[367329495,1750752652442,-487.01,0.00020273,2]
[367329496,1750752652451,-460.0,0.00020273,2]
[367329497,1750752652461,-254.3507302,0.00020273,2]
[367329498,1750752652470,-528.83138794,0.00020273,2]
[367329499,1750752652480,-615.97,0.00020273,2]
[367329500,1750752652489,-460.0,0.00020273,2]
[367329501,1750752652498,-492.32,0.00020273,2]
[367329502,1750752652507,-460.0,0.00020273,2]
[367329503,1750752652517,-460.0,0.00020273,2]
[367329504,1750752652527,-603.64,0.00020273,2]
[367329505,1750752652536,-460.0,0.00020273,2]
[367329506,1750752652545,-460.0,0.00020273,2]
[367329507,1750752652555,-460.0,0.00020273,2]
[367329508,1750752652565,-460.0,0.00020273,2]
[367329509,1750752652574,-460.0,0.00020273,2]
[367329510,1750752652584,-460.0,0.00020273,2]
[367329511,1750752652594,-460.0,0.00020273,2]
[367329512,1750752652603,-460.0,0.00020273,2]
[367329513,1750752652612,-460.0,0.00020273,2]
[367329514,1750752652622,-714.5,0.00020273,2]
[367329515,1750752652631,-460.0,0.00020273,2]
[367329516,1750752652640,-460.0,0.00020273,2]
[367329517,1750752652650,-460.0,0.00020273,2]
[367329518,1750752652659,-223.02936744,0.00020273,2]
[367329519,1750752652668,-396.70807903,0.00020273,2]
[367329520,1750752652677,-460.0,0.00020273,2]
[367329521,1750752652687,-460.0,0.00020273,2]
[367329522,1750752652696,-460.0,0.00020273,2]
[367329523,1750752652706,-460.0,0.00020273,2]
[367329524,1750752652715,-523.43,0.00020273,2]
[367329525,1750752652724,-460.0,0.00020273,2]
[367329526,1750752652733,-460.0,0.00020273,2]
[367329527,1750752652743,-503.09,0.00020273,2]
[367329528,1750752652752,-460.0,0.00020273,2]
[367329529,1750752652761,-460.0,0.00020273,2]
[367329530,1750752652771,-151.0,0.00020273,2]
[367329531,1750752652780,-460.0,0.00020273,2]
[367329532,1750752652790,-460.0,0.00020273,2]
[367329533,1750752652801,-151.0,0.00020273,2]
[367329534,1750752652810,-460.0,0.00020273,2]
[367329535,1750752652819,-152.206113,0.00020273,2]
[367329536,1750752652830,-460.0,0.00020273,2]
[367329537,1750752652839,-460.0,0.00020273,2]
[367329538,1750752652849,-460.0,0.00020273,2]
[367329539,1750752652859,-382.73096638,0.00020273,2]
[367329540,1750752652868,-1026.56,0.00020273,2]
[367329541,1750752652878,-153.025493,0.00020273,2]
[367329542,1750752652975,-460.0,0.00020273,2]
[367329543,1750752652985,-821.9,0.00020273,2]
[367329544,1750752652994,-460.0,0.00020273,2]
[367329545,1750752653004,-299.146207,0.00020273,2]
[367329546,1750752653013,-460.0,0.00020273,2]
[367329547,1750752653022,-896.28,0.00020273,2]
[367329548,1750752653032,-299.146207,0.00020273,2]
[367329549,1750752653041,-1097.0,0.00020273,2]
[367329550,1750752653050,-460.0,0.00020273,2]
[367329551,1750752653060,-151.0,0.00020273,2]
[367329552,1750752653069,-460.0,0.00020273,2]
[367329553,1750752653078,-460.0,0.00020273,2]
[367329554,1750752653088,-486.32542155,0.00020273,2]
[367329555,1750752653097,-460.0,0.00020273,2]
[367329556,1750752653106,-460.0,0.00020273,2]
[367329557,1750752653115,-460.0,0.00020273,2]
[367329558,1750752653125,-896.27,0.00020273,2]
[367329559,1750752653135,-3446.55,0.00020273,2]
[367329560,1750752653144,-999.41,0.00020273,2]
[367329561,1750752653154,-460.0,0.00020273,2]
[367329562,1750752653163,-460.0,0.00020273,2]
[367329563,1750752653173,-2713.65,0.00020273,2]
[367329564,1750752653182,-460.0,0.00020273,2]
[367329565,1750752653191,-460.0,0.00020273,2]
[367329566,1750752653200,-460.0,0.00020273,2]
[367329567,1750752653209,-1312.15,0.00020273,2]
[367329568,1750752653218,-183.963104,0.00020273,2]
[367329569,1750752653227,-460.0,0.00020273,2]
[367329570,1750752653238,-460.0,0.00020273,2]
[367329571,1750752653249,-3355.8,0.00020273,2]
[367329572,1750752653258,-3734.84,0.00020273,2]
[367329573,1750752653268,-1361.0,0.00020273,2]
[367329574,1750752653278,-183.963104,0.00020273,2]
[367329575,1750752653288,-460.0,0.00020273,2]
[367329576,1750752653298,-460.0,0.00020273,2]
[367329577,1750752653308,-460.0,0.00020273,2]
[367329578,1750752653317,-1116.13,0.00020273,2]
[367329579,1750752653326,-1182.98,0.00020273,2]
[367329580,1750752653336,-460.0,0.00020273,2]
[367329581,1750752653345,-460.0,0.00020273,2]
[367329582,1750752653355,-937.65,0.00020273,2]
[367329583,1750752653364,-460.0,0.00020273,2]
[367329584,1750752653374,-251.679561,0.00020273,2]
[367329585,1750752653383,-460.0,0.00020273,2]
[367329586,1750752653392,-606.04,0.00020273,2]
[367329587,1750752653402,-151.0,0.00020273,2]
[367329588,1750752653411,-547.64,0.00020273,2]
[367329589,1750752653421,-460.0,0.00020273,2]
[367329590,1750752653431,-460.0,0.00020273,2]
[367329591,1750752653440,-460.0,0.00020273,2]
[367329592,1750752653450,-500.74,0.00020273,2]
[367329593,1750752653459,-460.0,0.00020273,2]
[367329594,1750752653469,-151.0,0.00020273,2]
[367329595,1750752653479,-460.0,0.00020273,2]
[367329596,1750752653489,-460.0,0.00020273,2]
[367329597,1750752653498,-151.0,0.00020273,2]
[367329598,1750752653508,-3172.77,0.00020273,2]
[367329599,1750752653518,-1806.17,0.00020273,2]
[367329600,1750752653527,-460.0,0.00020273,2]
[367329601,1750752653537,-460.0,0.00020273,2]
[367329602,1750752653546,-460.0,0.00020273,2]
[367329603,1750752653556,-151.0,0.00020273,2]
[367329604,1750752653566,-4070.75,0.00020273,2]
[367329605,1750752653576,-1139.13,0.00020273,2]
[367329606,1750752653585,-460.0,0.00020273,2]
[367329607,1750752653595,-460.0,0.00020273,2]
[367329608,1750752653604,-460.0,0.00020273,2]
[367329609,1750752653614,-460.0,0.00020273,2]
[367329610,1750752653624,-460.0,0.00020273,2]
[367329611,1750752653633,-802.34,0.00020273,2]
[367329612,1750752653642,-2208.12,0.00020273,2]
[367329613,1750752653652,-372.59023255,0.00020273,2]
[367329614,1750752653661,-513.68,0.00020273,2]
[367329615,1750752653672,-460.0,0.00020273,2]
[367329616,1750752653681,-2572.64,0.00020273,2]
[367329617,1750752653691,-460.0,0.00020273,2]
[367329618,1750752653700,-460.0,0.00020273,2]
[367329619,1750752653710,-460.0,0.00020273,2]
[367329620,1750752653719,-593.83,0.00020273,2]
[367329621,1750752653728,-584.89,0.00020273,2]
[367329622,1750752653739,-460.0,0.00020273,2]
[367329623,1750752653748,-540.21,0.00020273,2]
[367329624,1750752653758,-4273.48,0.00020273,2]
[367329625,1750752653767,-460.0,0.00020273,2]
[367329626,1750752653776,-460.0,0.00020273,2]
[367329627,1750752653788,-946.13,0.00020273,2]
[367329628,1750752653798,-460.0,0.00020273,2]
[367329629,1750752653807,-460.0,0.00020273,2]
[367329630,1750752653816,-460.0,0.00020273,2]
[367329631,1750752653826,-470.14,0.00020273,2]
[367329632,1750752653837,-3042.66,0.00020273,2]
[367329633,1750752653846,-7145.98,0.00020273,2]
[367329634,1750752653856,-532.82,0.00020273,2]
[367329635,1750752653867,-460.0,0.00020273,2]
[367329636,1750752653876,-1474.54,0.00020273,2]
[367329637,1750752653886,-460.0,0.00020273,2]
[367329638,1750752653895,-460.0,0.00020273,2]
[367329639,1750752653905,-926.066891,0.00020273,2]
[367329640,1750752653914,-1898.18,0.00020273,2]
[367329641,1750752653924,-926.066891,0.00020273,2]
[367329642,1750752653933,-460.0,0.00020273,2]
[367329643,1750752653943,-460.0,0.00020273,2]
[367329644,1750752653952,-460.0,0.00020273,2]
[367329645,1750752653961,-460.0,0.00020273,2]
[367329646,1750752653971,-460.0,0.00020273,2]
[367329647,1750752653980,-3447.67,0.00020273,2]
[367329648,1750752653989,-1037.04,0.00020273,2]
[367329649,1750752653998,-3559.0,0.00020273,2]
[367329650,1750752654007,-151.0,0.00020273,2]
[367329651,1750752654016,-460.0,0.00020273,2]
[367329652,1750752654025,-853.1,0.00020273,2]
[367329653,1750752654035,-460.0,0.00020273,2]
[367329654,1750752654044,-1275.83,0.00020273,2]
[367329655,1750752654053,-460.0,0.00020273,2]
[367329656,1750752654062,-460.0,0.00020273,2]
[367329657,1750752654072,-460.0,0.00020273,2]
[367329658,1750752654081,-460.0,0.00020273,2]
[367329659,1750752654090,-151.0,0.00020273,2]
[367329660,1750752654099,-1267.62,0.00020273,2]
[367329661,1750752654108,-460.0,0.00020273,2]
[367329662,1750752654118,-1171.59,0.00020273,2]
[367329663,1750752654127,-460.0,0.00020273,2]
[367329664,1750752654136,-201.105902,0.00020273,2]
[367329665,1750752654145,-823.8,0.00020273,2]
[367329666,1750752654154,-151.0,0.00020273,2]
[367329667,1750752654164,-1521.89,0.00020273,2]
[367329668,1750752654173,-1403.33,0.00020273,2]
[367329669,1750752654182,-216.0,0.00020274,2]
[367329670,1750752654191,-418.0,0.00020279,2]
[367329671,1750752654200,-846.68469334,0.000203,3]
[367329672,1750752654210,-12556.00642039,0.000203,3]
[367329673,1750752654220,-160.0,0.000203,3]
[367329674,1750752654229,-160.0,0.000203,3]
[367329675,1750752654238,-1000.0,0.00020321,2]
[367329676,1750752654247,-1000.0,0.00020321,2]
[367329677,1750752654258,-1000.0,0.00020321,2]
[367329678,1750752654268,-1000.0,0.00020321,2]
[367329679,1750752654277,-500.0,0.00020321,2]
[367329680,1750752654286,-1000.0,0.00020321,2]
[367329681,1750752654296,-1000.0,0.00020321,2]
[367329682,1750752654305,-1000.0,0.00020321,2]
[367329683,1750752654315,-429.82093682,0.00020321,2]
[367329684,1750752654324,-887.2475225,0.00020394,2]
[367329685,1750752654333,-151.0,0.000204,4]
[367329686,1750752654344,-151.0,0.000204,3]
[367329687,1750752654353,-3157.93331803,0.00020417,3]
[367329688,1750752654364,-393.16154789,0.00020432,2]
[367329689,1750752654373,-4734.0,0.00020472,2]
[367329690,1750752654383,-215.0738,0.00020476,2]
[367329691,1750752654392,-1337.84,0.00020479,3]
[367329692,1750752654401,-668.92,0.00020479,3]
[367329693,1750752654411,-334.46,0.00020479,3]
[367329694,1750752654420,-151.0,0.000205,4]
[367329695,1750752654429,-3909.2380181,0.000205,2]
[367329696,1750752654518,-218.12,0.00020515,2]
[367329697,1750752654528,-774.17274144,0.00020521,2]
[367329698,1750752654537,-1000.0,0.00020521,2]
[367329699,1750752654547,-452.1624179,0.00020521,2]
[367329700,1750752654557,-1000.0,0.00020521,2]
[367329701,1750752654567,-1000.0,0.00020521,2]
[367329702,1750752654576,-1000.0,0.00020521,2]
[367329703,1750752654586,-1000.0,0.00020521,2]
[367329704,1750752654595,-500.95945112,0.00020521,2]
[367329705,1750752654605,-1025.24738748,0.00020521,2]
[367329706,1750752654614,-1000.0,0.00020521,2]
[367329707,1750752654624,-1000.0,0.00020521,2]
[367329708,1750752654633,-416.06737292,0.00020521,2]
[367329709,1750752654643,-286.0,0.00020524,3]
[367329710,1750752654653,-600.0,0.00020544,2]
[367329711,1750752654663,-460.0,0.00020547,2]
[367329712,1750752654672,-592.73,0.00020547,2]
[367329713,1750752654681,-151.0,0.00020547,2]
[367329714,1750752654691,-460.0,0.00020547,2]
[367329715,1750752654701,-757.17,0.00020547,14]
[367329716,1750752654710,-460.0,0.00020547,2]
[367329717,1750752654720,-460.0,0.00020547,2]
[367329718,1750752654729,-460.0,0.00020547,2]
[367329719,1750752654738,-673.94,0.00020547,2]
[367329720,1750752654748,-1047.12,0.00020547,2]
[367329721,1750752654757,-487.01,0.00020547,2]
[367329722,1750752654767,-460.0,0.00020547,2]
[367329723,1750752654777,-615.97,0.00020547,2]
[367329724,1750752654788,-607.2297974,0.00020547,2]
[367329725,1750752654798,-492.32,0.00020547,2]
[367329726,1750752654807,-286.52,0.00020547,2]
[367329727,1750752654818,-599.17800727,0.00020547,2]
[367329728,1750752654829,-346.39595258,0.00020547,2]
[367329729,1750752654839,-460.0,0.00020547,2]
[367329730,1750752654851,-485.09,0.00020547,2]
[367329731,1750752654861,-460.0,0.00020547,2]
[367329732,1750752654871,-460.0,0.00020547,2]
[367329733,1750752654880,-460.0,0.00020547,2]
[367329734,1750752654890,-575.2,0.00020547,2]
[367329735,1750752654899,-460.0,0.00020547,2]
[367329736,1750752654909,-714.5,0.00020547,2]
[367329737,1750752654919,-460.0,0.00020547,2]
[367329738,1750752654931,-460.0,0.00020547,2]
[367329739,1750752654942,-460.0,0.00020547,2]
[367329740,1750752654952,-460.0,0.00020547,2]
[367329741,1750752654961,-151.0,0.00020547,2]
[367329742,1750752654970,-151.0,0.00020547,2]
[367329743,1750752654980,-460.28646618,0.00020547,2]
[367329744,1750752654989,-151.0,0.00020547,2]
[367329745,1750752654998,-151.0,0.00020547,2]
[367329746,1750752655007,-460.0,0.00020547,2]
[367329747,1750752655017,-523.43,0.00020547,2]
[367329748,1750752655027,-151.0,0.00020547,2]
[367329749,1750752655036,-460.0,0.00020547,2]
[367329750,1750752655046,-460.0,0.00020547,2]
[367329751,1750752655056,-503.09,0.00020547,2]
[367329752,1750752655065,-151.0,0.00020547,2]
[367329753,1750752655075,-225.83,0.00020547,2]
[367329754,1750752655083,-460.0,0.00020547,2]
[367329755,1750752655093,-460.0,0.00020547,2]
[367329756,1750752655102,-460.0,0.00020547,2]
[367329757,1750752655112,-442.72484457,0.00020547,2]
[367329758,1750752655122,-460.0,0.00020547,2]
[367329759,1750752655131,-460.0,0.00020547,2]
[367329760,1750752655141,-460.0,0.00020547,2]
[367329761,1750752655150,-301.50423,0.00020547,2]
[367329762,1750752655159,-1026.56,0.00020547,2]
[367329763,1750752655169,-460.0,0.00020547,2]
[367329764,1750752655178,-301.50423,0.00020547,2]
[367329765,1750752655187,-821.9,0.00020547,2]
[367329766,1750752655196,-460.0,0.00020547,2]
[367329767,1750752655205,-460.0,0.00020547,2]
[367329768,1750752655216,-896.28,0.00020547,2]